bitfinex/quotes_BTCUSD_20250225
["timestamp","ask_amount","ask_price","bid_price","bid_amount"]
[1740452844794,0.00580796,92641.0,92618.0,0.0208494]
[1740452844994,0.0473,92640.0,92618.0,0.0008494]
[1740452845294,0.15,92638.0,92605.0,0.02]
[1740452845492,0.00301411,92637.0,92605.0,0.02]
[1740452845698,0.1491368,92636.0,92605.0,0.02]
[1740452845897,0.06181867,92635.0,92605.0,0.02]
[1740452846098,0.01694083,92631.0,92605.0,0.02]
[1740452846299,0.01694083,92631.0,92587.0,0.3224]
[1740452846300,0.00295293,92630.0,92606.0,0.0208488]
[1740452846710,0.00295293,92630.0,92610.0,0.02]
[1740452847127,0.00295293,92630.0,92620.0,0.02]
[1740452847857,0.01121037,92629.0,92621.0,0.0799]
[1740452848056,0.01121037,92629.0,92622.0,0.0478]
[1740452848259,0.01121037,92629.0,92628.0,0.02]
[1740452848459,0.01121037,92629.0,92628.0,0.1027]
[1740452848629,0.01121037,92629.0,92628.0,0.0827]
[1740452850603,0.01930398,92629.0,92628.0,0.1027]
[1740452851143,0.01121037,92629.0,92628.0,0.1027]
[1740452852111,0.0281504,92629.0,92628.0,0.1027]
[1740452852515,0.03109649,92629.0,92628.0,0.1027]
[1740452853140,0.01988612,92629.0,92628.0,0.1027]
[1740452853338,0.01988612,92629.0,92628.0,0.11775]
[1740452853540,0.01694003,92629.0,92628.0,0.16405]
[1740452853941,0.00043003,92642.0,92628.0,0.03656117]
[1740452854142,0.00043003,92642.0,92641.0,0.23552529]
[1740452854316,0.00043003,92642.0,92641.0,0.48186]
[1740452856097,0.01736584,92642.0,92641.0,0.4715]
[1740452856211,0.01736584,92642.0,92641.0,0.46186]
[1740452856416,0.01736584,92642.0,92641.0,0.48186]
[1740452857283,0.01736584,92642.0,92641.0,0.4715]
[1740452858263,0.01736584,92642.0,92641.0,0.1491]
[1740452858712,0.01736584,92642.0,92641.0,0.1291]
[1740452858929,0.01736584,92642.0,92641.0,0.0794]
[1740452859079,0.01736584,92642.0,92641.0,0.0994]
[1740452859287,0.01736584,92642.0,92641.0,0.0794]
[1740452860760,0.01736584,92642.0,92640.0,0.02]
[1740452861594,0.01736584,92642.0,92636.0,0.02]
[1740452861801,0.01736584,92642.0,92640.0,0.02]
[1740452863494,0.01736584,92642.0,92633.0,0.02]
[1740452863662,0.01736584,92642.0,92627.0,0.0811]
[1740452863886,0.00043003,92642.0,92627.0,0.0811]
[1740452864374,0.00043003,92642.0,92625.0,0.02]
[1740452864552,0.00043003,92642.0,92628.0,0.0008491]
[1740452865098,0.00212823,92642.0,92628.0,0.0008491]
[1740452865881,0.00296619,92641.0,92628.0,0.0008491]
[1740452866537,0.00818623,92629.0,92628.0,0.0008491]
[1740452866889,0.01115242,92629.0,92628.0,0.0008491]
[1740452867494,0.02024766,92629.0,92628.0,0.0008491]
[1740452868972,0.02024766,92629.0,92609.0,0.0008494]
[1740452869166,0.049,92628.0,92609.0,0.0008494]
[1740452869597,0.00291912,92627.0,92609.0,0.0008494]
[1740452871454,0.0819,92626.0,92609.0,0.0008494]
[1740452871651,0.18011006,92625.0,92609.0,0.0008494]
[1740452871854,0.15,92623.0,92609.0,0.0008494]
[1740452872317,0.0169444,92622.0,92609.0,0.0008494]
[1740452872540,0.01983444,92622.0,92598.0,0.0008488]
[1740452872764,0.02,92616.0,92598.0,0.0008488]
[1740452872978,0.07338597,92615.0,92598.0,0.0008488]
[1740452873245,0.233,92614.0,92598.0,0.0008488]
[1740452873451,0.01694614,92611.0,92598.0,0.0008488]
[1740452874099,0.00283846,92610.0,92598.0,0.0008488]
[1740452874226,0.15,92608.0,92598.0,0.0008488]
[1740452874432,0.07292846,92607.0,92598.0,0.0008488]
[1740452874775,0.00283846,92606.0,92598.0,0.0008488]
[1740452875114,0.00799349,92599.0,92598.0,0.0008488]
[1740452875374,0.01083195,92599.0,92598.0,0.0008488]
[1740452875810,0.02777825,92599.0,92598.0,0.0008488]
[1740452878920,0.00799349,92599.0,92598.0,0.0008488]
[1740452881263,0.01079759,92599.0,92598.0,0.0008488]
[1740452881637,0.01403215,92599.0,92598.0,0.0797488]
[1740452882010,0.02817261,92599.0,92598.0,0.0797488]
[1740452882224,0.02817261,92599.0,92598.0,0.0997488]
[1740452882640,0.03097839,92599.0,92598.0,0.0997488]
[1740452882859,0.02817261,92599.0,92598.0,0.0997488]
[1740452883061,0.03097839,92599.0,92598.0,0.0997488]
[1740452883264,0.02817261,92599.0,92598.0,0.0997488]
[1740452887168,0.02817261,92599.0,92598.0,0.14700856]
[1740452887388,0.02817261,92599.0,92598.0,0.4221488]
[1740452888533,0.02817261,92599.0,92598.0,0.4673488]
[1740452888942,0.02817261,92599.0,92598.0,0.4777088]
[1740452893178,0.02817261,92599.0,92598.0,0.4673488]
[1740452893514,0.02817261,92599.0,92598.0,0.4777088]
[1740452893716,0.02788643,92599.0,92598.0,0.4777088]
[1740452895095,0.02788643,92599.0,92598.0,0.4673488]
[1740452895295,0.02788643,92599.0,92598.0,0.3232488]
[1740452895496,0.02788643,92599.0,92598.0,0.3432488]
[1740452895706,0.02788643,92599.0,92598.0,0.3232488]
[1740452895906,0.01094187,92599.0,92598.0,0.3232488]
[1740452896755,0.01094187,92599.0,92598.0,0.3432488]
[1740452897299,0.01094187,92599.0,92598.0,0.3232488]
[1740452897495,0.01094187,92599.0,92598.0,0.3432488]
[1740452898443,0.01094187,92599.0,92598.0,0.45559456]
[1740452899027,0.01094187,92599.0,92598.0,0.4201488]
[1740452899998,0.14476883,92631.0,92614.0,0.02]
[1740452900193,0.00808025,92619.0,92614.0,0.02012888]
[1740452900965,0.0028536,92618.0,92614.0,0.02012888]
[1740452903087,0.0028536,92618.0,92614.0,0.00012888]
[1740452903495,0.00808025,92619.0,92614.0,0.00012888]
[1740452903743,0.0028536,92618.0,92614.0,0.00012888]
[1740452905306,0.0028536,92618.0,92603.0,0.00318613]
[1740452905552,0.00808025,92619.0,92603.0,0.00318613]
[1740452905933,0.0028536,92618.0,92603.0,0.00318613]
[1740452906472,0.00898339,92617.0,92605.0,0.00318613]
[1740452906778,0.01694304,92615.0,92605.0,0.00318613]
[1740452907277,0.01694304,92615.0,92598.0,0.00127856]
[1740452907504,0.0028536,92614.0,92598.0,0.00127856]
[1740452907705,0.00832603,92613.0,92598.0,0.00127856]
[1740452908267,0.0028536,92612.0,92598.0,0.00127856]
[1740452909082,0.0764,92611.0,92598.0,0.00127856]
[1740452909676,0.0028536,92610.0,92592.0,0.0008488]
[1740452913796,0.00794012,92593.0,92592.0,0.0008488]
[1740452914668,0.02488578,92593.0,92592.0,0.0008488]
[1740452915077,0.02772958,92593.0,92592.0,0.0008488]
[1740452915683,0.03896183,92593.0,92592.0,0.0008488]
[1740452916036,0.06241934,92593.0,92592.0,0.0008488]
[1740452921761,0.06241934,92593.0,92573.0,0.00318613]
[1740452922126,0.04547368,92593.0,92573.0,0.00318613]
[1740452922755,0.04483362,92600.0,92573.0,0.00318613]
[1740452923048,0.011204,92592.0,92573.0,0.00318613]
[1740452923832,0.011204,92592.0,92580.0,0.00318613]
[1740452924007,0.011204,92592.0,92566.0,0.01036]
[1740452924008,0.00259786,92591.0,92585.0,0.1255]
[1740452924425,0.011204,92592.0,92585.0,0.1255]
[1740452925175,0.01694666,92591.0,92585.0,0.1255]
[1740452925378,0.00259786,92590.0,92585.0,0.1255]
[1740452925981,0.00801133,92586.0,92585.0,0.1255]
[1740452926396,0.01060919,92586.0,92585.0,0.1255]
[1740452927228,0.00801133,92586.0,92585.0,0.1255]
[1740452927630,0.011204,92592.0,92585.0,0.1255]
[1740452928057,0.00258971,92591.0,92585.0,0.1255]
[1740452928254,0.011204,92592.0,92585.0,0.1255]
[1740452928832,0.011204,92592.0,92591.0,0.00318613]
[1740452929235,0.011204,92592.0,92585.0,0.1255]
[1740452929450,0.011204,92592.0,92584.0,0.00318613]
[1740452931304,0.011204,92592.0,92581.0,0.00318613]
[1740452931734,0.011204,92592.0,92576.0,0.0471]
[1740452931928,0.011204,92592.0,92579.0,0.00318613]
[1740452932160,0.011204,92592.0,92576.0,0.0471]
[1740452932991,0.011204,92592.0,92579.0,0.00318613]
[1740452936015,0.011204,92592.0,92579.0,0.00403563]
[1740452936478,0.011204,92592.0,92579.0,0.01827519]
[1740452936683,0.011204,92592.0,92584.0,0.00318613]
[1740452936796,0.0169472,92589.0,92579.0,0.00132799]
[1740452937402,0.0169472,92589.0,92576.0,0.05746]
[1740452937597,0.011204,92592.0,92576.0,0.05746]
[1740452939535,0.011204,92592.0,92578.0,0.0758]
[1740452940093,0.011204,92592.0,92579.0,0.00151196]
[1740452940463,0.011204,92592.0,92581.0,0.0479]
[1740452940642,0.011204,92592.0,92583.0,0.0768]
[1740452940827,0.011204,92592.0,92586.0,0.0768]
[1740452941028,0.011204,92592.0,92587.0,0.07831178]
[1740452941862,0.001699,92600.0,92587.0,0.07831178]
[1740452943322,0.001699,92600.0,92588.0,0.00151177]
[1740452943681,0.001699,92600.0,92587.0,0.0768]
[1740452944019,0.001699,92600.0,92587.0,0.08942118]
[1740452944223,0.001699,92600.0,92588.0,0.00151177]
[1740452944397,0.001699,92600.0,92589.0,0.3997]
[1740452944598,0.001699,92600.0,92590.0,0.00151177]
[1740452945573,0.01694472,92598.0,92590.0,0.00151177]
[1740452946831,0.01694472,92598.0,92589.0,0.3997]
[1740452947706,0.01694472,92598.0,92590.0,0.00151178]
[1740452947918,0.01694472,92598.0,92591.0,0.04491118]
[1740452948073,0.01694472,92598.0,92592.0,0.00151178]
[1740452948276,0.01694472,92598.0,92592.0,0.32391178]
[1740452948474,0.01694472,92598.0,92592.0,0.3224]
[1740452948718,0.01694472,92598.0,92593.0,0.0789]
[1740452948922,0.01694472,92598.0,92594.0,0.09012112]
[1740452949150,0.001699,92600.0,92595.0,0.0804117]
[1740452952170,0.01694398,92610.0,92595.0,0.0804117]
[1740452953256,0.01694398,92610.0,92596.0,0.3224]
[1740452953570,0.01121562,92632.0,92597.0,0.05095611]
[1740452953773,0.01121562,92632.0,92598.0,0.3224]
[1740452953975,0.01121562,92632.0,92599.0,0.00151162]
[1740452955009,0.03534146,92632.0,92599.0,0.00151162]
[1740452955348,0.00793104,92618.0,92600.0,0.0764]
[1740452955573,0.00793104,92618.0,92601.0,0.05108024]
[1740452955780,0.03534146,92632.0,92602.0,0.0828]
[1740452955985,0.03534146,92632.0,92604.0,0.0828]
[1740452956190,0.03534146,92632.0,92606.0,0.0828]
[1740452956389,0.03534146,92632.0,92605.0,0.01032]
[1740452956390,0.02412584,92632.0,92608.0,0.0831]
[1740452956590,0.01694193,92626.0,92610.0,0.0831]
[1740452956801,0.01694193,92626.0,92612.0,0.0831]
[1740452957816,0.0026647,92625.0,92612.0,0.0831]
[1740452958286,0.01694193,92626.0,92612.0,0.0831]
[1740452958821,0.00267616,92625.0,92612.0,0.0831]
[1740452959184,0.01694193,92626.0,92612.0,0.0831]
[1740452959401,0.00266931,92625.0,92612.0,0.0831]
[1740452959600,0.01694193,92626.0,92612.0,0.0831]
[1740452959926,0.00266931,92625.0,92612.0,0.097362]
[1740452960437,0.01694193,92626.0,92612.0,0.097362]
[1740452960801,0.00266931,92625.0,92612.0,0.097362]
[1740452960997,0.01694193,92626.0,92612.0,0.097362]
[1740452961180,0.00266931,92625.0,92612.0,0.097362]
[1740452961387,0.01694193,92626.0,92612.0,0.0831]
[1740452961607,0.00266931,92625.0,92612.0,0.0831]
[1740452961859,0.01694193,92626.0,92612.0,0.0831]
[1740452962241,0.00266931,92625.0,92612.0,0.0831]
[1740452962768,0.01694193,92626.0,92612.0,0.0831]
[1740452963230,0.00266931,92625.0,92612.0,0.0831]
[1740452963656,0.01694193,92626.0,92612.0,0.0831]
[1740452964066,0.00266931,92625.0,92612.0,0.0831]
[1740452964545,0.01694193,92626.0,92612.0,0.0831]
[1740452964905,0.00267696,92625.0,92612.0,0.0831]
[1740452965324,0.01694193,92626.0,92612.0,0.0831]
[1740452965710,0.00267696,92625.0,92612.0,0.0831]
[1740452965922,0.01694193,92626.0,92612.0,0.0831]
[1740452966175,0.00267696,92625.0,92612.0,0.0831]
[1740452966377,0.01121251,92625.0,92613.0,0.01338116]
[1740452966547,0.01121251,92625.0,92612.0,0.0831]
[1740452972254,0.01121251,92625.0,92613.0,0.01032]
[1740452973356,0.01121251,92625.0,92614.0,0.08171158]
[1740452973533,0.01121251,92625.0,92614.0,0.0802]
[1740452975952,0.01121251,92625.0,92615.0,0.0508115]
[1740452976156,0.01121251,92625.0,92617.0,0.0802]
[1740452976359,0.01121251,92625.0,92617.0,0.08171144]
[1740452976562,0.01121251,92625.0,92617.0,0.0802]
[1740452982081,0.01121251,92625.0,92617.0,0.08171143]
[1740452982685,0.01121251,92625.0,92617.0,0.08171138]
[1740452982890,0.01121251,92625.0,92621.0,0.0824]
[1740452983099,0.01121251,92625.0,92623.0,0.0824]
[1740452983309,0.01121251,92625.0,92624.0,0.12921132]
[1740452985452,0.038142,92663.0,92624.0,0.12921132]
[1740452985453,0.3352948,92669.0,92625.0,0.0112052]
[1740452985664,0.0087948,92666.0,92626.0,0.08290165]
[1740452986057,0.03802495,92666.0,92626.0,0.08290165]
[1740452986258,0.00267584,92665.0,92626.0,0.08290165]
[1740452986435,0.01147064,92665.0,92626.0,0.08290165]
[1740452986637,0.00803019,92636.0,92626.0,0.08303085]
[1740452987383,0.00803019,92636.0,92627.0,0.01410473]
[1740452988108,0.15,92663.0,92628.0,0.00151126]
[1740452988446,0.00267584,92662.0,92629.0,0.0794]
[1740452989399,0.00267584,92662.0,92630.0,0.0482]
[1740452989621,0.00267584,92662.0,92631.0,0.0798]
[1740452989870,0.05876747,92661.0,92632.0,0.01466473]
[1740452990273,0.00270312,92660.0,92632.0,0.01466473]
[1740452991116,0.01693941,92654.0,92632.0,0.01466473]
[1740452991530,0.00794034,92642.0,92632.0,0.01466473]
[1740452991915,0.00794034,92642.0,92631.0,0.0798]
[1740452992240,0.01694008,92640.0,92631.0,0.0798]
[1740452993080,0.00794034,92642.0,92631.0,0.0798]
[1740452994889,0.00794034,92642.0,92632.0,0.01032]
[1740452995097,0.4765,92663.0,92633.0,0.0112052]
[1740452995248,0.3265,92680.0,92644.0,0.0815]
[1740452995470,0.00272449,92665.0,92644.0,0.0815]
[1740452995880,0.01122528,92668.0,92644.0,0.0815]
[1740452996085,0.01693823,92660.0,92644.0,0.0815]
[1740452997562,0.00831009,92654.0,92644.0,0.0815]
[1740452998650,0.01693823,92660.0,92644.0,0.0815]
[1740452998852,0.00272449,92659.0,92644.0,0.0815]
[1740452999053,0.01693823,92660.0,92644.0,0.0815]
[1740452999257,0.00272449,92659.0,92644.0,0.0815]
[1740452999617,0.01693823,92660.0,92644.0,0.0815]
[1740452999757,0.01693823,92660.0,92644.0,0.0927052]
[1740452999958,0.00272449,92659.0,92644.0,0.0927052]
[1740453000392,0.01693823,92660.0,92644.0,0.0927052]
[1740453000745,0.00274823,92659.0,92644.0,0.0927052]
[1740453001089,0.01693823,92660.0,92644.0,0.0927052]
[1740453001289,0.01123025,92658.0,92644.0,0.0927052]
[1740453001484,0.00808093,92656.0,92644.0,0.0927052]
[1740453004684,0.00808093,92656.0,92645.0,0.01429162]
[1740453005161,0.00808093,92656.0,92644.0,0.0927052]
[1740453007553,0.00808093,92656.0,92645.0,0.0467]
[1740453007777,0.00808093,92656.0,92646.0,0.079]
[1740453007985,0.00808093,92656.0,92647.0,0.0467]
[1740453008202,0.00808093,92656.0,92648.0,0.079]
[1740453008406,0.00274823,92655.0,92648.0,0.079]
[1740453008634,0.00808093,92656.0,92648.0,0.079]
[1740453017297,0.00808093,92656.0,92649.0,0.01480736]
[1740453017663,0.03106634,92668.0,92651.0,0.0785]
[1740453017863,0.00274522,92667.0,92653.0,0.0897052]
[1740453018093,0.03106634,92668.0,92653.0,0.0897052]
[1740453018796,0.03106634,92668.0,92654.0,0.07971085]
[1740453018995,0.03106634,92668.0,92656.0,0.0782]
[1740453019195,0.03106634,92668.0,92656.0,0.09216161]
[1740453020005,0.03106634,92668.0,92656.0,0.09229081]
[1740453020244,0.00830962,92665.0,92656.0,0.09229081]
[1740453020764,0.00830962,92665.0,92656.0,0.0783292]
[1740453025192,0.00830962,92665.0,92656.0,0.0001292]
[1740453025593,0.00277896,92664.0,92656.0,0.0001292]
[1740453029373,0.01693856,92663.0,92656.0,0.0001292]
[1740453029592,0.01970037,92663.0,92657.0,0.1245]
[1740453029804,0.00276181,92663.0,92657.0,0.1245]
[1740453030233,0.00830962,92665.0,92657.0,0.1245]
[1740453030464,0.00276256,92662.0,92657.0,0.1245]
[1740453030682,0.00830962,92665.0,92657.0,0.1245]
[1740453030902,0.00276256,92661.0,92657.0,0.1245]
[1740453031104,0.00830962,92665.0,92657.0,0.1245]
[1740453031321,0.00276256,92664.0,92657.0,0.1245]
[1740453032379,0.01693781,92663.0,92657.0,0.1245]
[1740453032592,0.01970481,92663.0,92657.0,0.1245]
[1740453033663,0.002767,92663.0,92657.0,0.1245]
[1740453034132,0.00830962,92665.0,92657.0,0.1245]
[1740453034380,0.002767,92662.0,92657.0,0.1245]
[1740453034592,0.00830962,92665.0,92657.0,0.1245]
[1740453034800,0.002767,92661.0,92657.0,0.1245]
[1740453035003,0.00830962,92665.0,92657.0,0.1245]
[1740453035191,0.002767,92660.0,92657.0,0.1245]
[1740453035395,0.00830962,92665.0,92657.0,0.1245]
[1740453035809,0.002767,92664.0,92657.0,0.1245]
[1740453036427,0.0546313,92664.0,92657.0,0.1245]
[1740453036630,0.002767,92664.0,92657.0,0.1245]
[1740453037057,0.0169383,92663.0,92657.0,0.1245]
[1740453037463,0.00276647,92662.0,92657.0,0.1245]
[1740453045650,0.00276647,92662.0,92657.0,0.1253484]
[1740453045898,0.00276647,92662.0,92657.0,0.0488484]
[1740453046134,0.00867454,92662.0,92657.0,0.0008484]
[1740453047937,0.00867454,92662.0,92595.0,0.15]
[1740453048139,0.15,92661.0,92646.0,0.0773]
[1740453048510,0.00276277,92660.0,92646.0,0.0773]
[1740453049601,0.00276277,92660.0,92642.0,0.00012922]
[1740453049799,0.04934805,92659.0,92642.0,0.00012922]
[1740453050388,0.00276277,92658.0,92642.0,0.00012922]
[1740453052855,0.05596559,92657.0,92642.0,0.00012922]
[1740453053074,0.0025137,92657.0,92642.0,0.00012922]
[1740453053301,0.26111597,92662.0,92642.0,0.00012922]
[1740453053535,0.0025137,92661.0,92642.0,0.00012922]
[1740453054427,0.26111597,92660.0,92642.0,0.00012922]
[1740453054857,0.0025137,92659.0,92642.0,0.00012922]
[1740453055091,0.02919393,92658.0,92642.0,0.00012922]
[1740453055633,0.0025137,92657.0,92642.0,0.00012922]
[1740453056899,0.01694021,92654.0,92644.0,0.0767]
[1740453057348,0.0025137,92653.0,92644.0,0.0767]
[1740453057904,0.01694539,92652.0,92644.0,0.0767]
[1740453058341,0.0025137,92651.0,92644.0,0.0767]
[1740453059745,0.01694021,92654.0,92644.0,0.0767]
[1740453060208,0.0025137,92653.0,92644.0,0.0767]
[1740453060620,0.15,92678.0,92644.0,0.0767]
[1740453061067,0.0025137,92661.0,92644.0,0.0767]
[1740453061517,0.0087948,92675.0,92644.0,0.0767]
[1740453061739,0.00252394,92661.0,92644.0,0.0767]
[1740453062105,0.15,92678.0,92644.0,0.0767]
[1740453062308,0.00252394,92661.0,92644.0,0.0767]
[1740453062509,0.0087948,92674.0,92644.0,0.0767]
[1740453062715,0.00252394,92661.0,92644.0,0.0767]
[1740453062915,0.0087948,92673.0,92644.0,0.0767]
[1740453063170,0.01693963,92658.0,92644.0,0.0767]
[1740453064483,0.00897762,92657.0,92644.0,0.0767]
[1740453068253,0.00897762,92657.0,92644.0,0.04419189]
[1740453068421,0.00897762,92657.0,92644.0,0.01168378]
[1740453068653,0.02,92655.0,92581.0,0.03732178]
[1740453068818,0.02,92653.0,92624.0,0.00097767]
[1740453069015,0.05167936,92652.0,92624.0,0.00097767]
[1740453069420,0.00250859,92651.0,92624.0,0.00097767]
[1740453070319,0.00238268,92651.0,92624.0,0.00097767]
[1740453071571,0.00238268,92651.0,92625.0,0.0776]
[1740453071721,0.01694208,92645.0,92625.0,0.0776]
[1740453072164,0.01694208,92645.0,92624.0,0.00097767]
[1740453072165,0.00818065,92626.0,92624.0,0.00097767]
[1740453072981,0.00818065,92626.0,92624.0,1e-08]
[1740453073217,0.02512503,92626.0,92624.0,1e-08]
[1740453073446,0.00818065,92626.0,92624.0,1e-08]
[1740453073851,0.41111597,92625.0,92624.0,1e-08]
[1740453074052,0.45304563,92625.0,92624.0,1e-08]
[1740453074494,0.15,92624.0,92608.0,0.07706178]
[1740453074694,0.15,92624.0,92608.0,0.0771911]
[1740453075133,0.15,92624.0,92583.0,0.01032]
[1740453075331,0.04700211,92623.0,92599.0,0.00043011]
[1740453075537,0.228,92622.0,92599.0,0.00043011]
[1740453077013,0.248,92622.0,92599.0,0.00043011]
[1740453077131,0.02,92618.0,92599.0,0.00043011]
[1740453077339,0.15,92616.0,92599.0,0.00043011]
[1740453077534,0.05460631,92615.0,92599.0,0.00043011]
[1740453077739,0.00800585,92600.0,92599.0,0.00043011]
[1740453078492,0.02495399,92600.0,92599.0,0.00043011]
[1740453081140,0.06226878,92600.0,92599.0,0.00043011]
[1740453086202,0.06226878,92600.0,92584.0,0.0832]
[1740453086472,0.00622688,92599.0,92584.0,0.0832]
[1740453087011,0.00622688,92599.0,92580.0,0.0008492]
[1740453088551,0.06269894,92600.0,92580.0,0.0008492]
[1740453089314,0.02538415,92600.0,92580.0,0.0008492]
[1740453095947,0.02538415,92600.0,92581.0,0.0754]
[1740453096188,0.02538415,92600.0,92580.0,0.0008492]
[1740453096189,0.02708215,92600.0,92583.0,0.0754]
[1740453096422,0.02708215,92600.0,92585.0,0.0754]
[1740453097118,0.21846157,92610.0,92585.0,0.0754]
[1740453097367,0.01694745,92597.0,92585.0,0.07583016]
[1740453097828,0.02730679,92609.0,92585.0,0.07583016]
[1740453099183,0.17730679,92609.0,92585.0,0.07583016]
[1740453100297,0.0081373,92587.0,92585.0,0.07583016]
[1740453101794,0.17730679,92609.0,92585.0,0.07583016]
[1740453101991,0.01694738,92587.0,92585.0,0.07583016]
[1740453102219,0.03957684,92608.0,92585.0,0.07583016]
[1740453102539,0.01694738,92587.0,92585.0,0.07583016]
[1740453102744,0.15,92609.0,92587.0,0.0754]
[1740453102948,0.15,92609.0,92589.0,0.0754]
[1740453103153,0.03765045,92608.0,92591.0,0.0771]
[1740453103353,0.01694602,92604.0,92591.0,0.0771]
[1740453103638,0.03765045,92608.0,92591.0,0.0771]
[1740453105021,0.0080429,92610.0,92591.0,0.0771]
[1740453105407,0.0080429,92610.0,92585.0,0.08223016]
[1740453105705,0.079,92609.0,92585.0,0.08223016]
[1740453106407,0.01694741,92604.0,92585.0,0.08223016]
[1740453106927,0.229,92609.0,92585.0,0.08223016]
[1740453107140,0.17855429,92608.0,92585.0,0.08223016]
[1740453107940,0.39701586,92608.0,92585.0,0.08223016]
[1740453109518,0.39701586,92608.0,92585.0,0.03344093]
[1740453110151,0.39701586,92608.0,92585.0,0.01649327]
[1740453113522,0.02294541,92609.0,92585.0,0.01649327]
[1740453113975,0.02294541,92609.0,92578.0,0.0809]
[1740453114185,0.0481,92608.0,92578.0,0.0809]
[1740453115969,0.0481,92608.0,92569.0,0.0797]
[1740453115970,0.00824294,92586.0,92569.0,0.0797]
[1740453116829,0.01695047,92585.0,92569.0,0.0797]
[1740453119362,0.00862101,92596.0,92569.0,0.0797]
[1740453119691,0.33512101,92596.0,92569.0,0.0797]
[1740453120226,0.0407658,92595.0,92569.0,0.0797]
[1740453120676,0.00825538,92581.0,92580.0,0.0791492]
[1740453121676,0.24434752,92596.0,92580.0,0.0791492]
[1740453121831,0.24477768,92596.0,92580.0,0.0791492]
[1740453122692,0.01694908,92593.0,92580.0,0.0791492]
[1740453122894,0.04312176,92593.0,92580.0,0.0791492]
[1740453123093,0.00821634,92581.0,92580.0,0.0791492]
[1740453123320,0.01694908,92593.0,92580.0,0.0791492]
[1740453123730,0.00804796,92587.0,92580.0,0.0791492]
[1740453125060,0.00043016,92596.0,92580.0,0.0791492]
[1740453126407,0.00795032,92589.0,92580.0,0.0791492]
[1740453127509,0.01694926,92587.0,92580.0,0.0791492]
[1740453127712,0.01694926,92587.0,92580.0,0.0008492]
[1740453128815,0.00795032,92589.0,92580.0,0.0008492]
[1740453130614,0.0149,92588.0,92580.0,0.0008492]
[1740453130864,0.00628503,92587.0,92580.0,0.0008492]
[1740453132083,0.01062303,92587.0,92580.0,0.0008492]
[1740453134533,0.004338,92587.0,92580.0,0.0008492]
[1740453134692,0.00795032,92589.0,92580.0,0.0008492]
[1740453134895,0.01228832,92589.0,92560.0,0.0488488]
[1740453137798,0.14580289,92592.0,92565.0,0.0823]
[1740453137977,0.0178211,92591.0,92565.0,0.0823]
[1740453138948,0.00809891,92567.0,92565.0,0.0823]
[1740453140251,0.00852881,92567.0,92565.0,0.0823]
[1740453144447,0.03971061,92567.0,92565.0,0.0823]
[1740453157431,0.03971061,92567.0,92565.0,0.0831485]
[1740453167215,0.02,92588.0,92565.0,0.0831485]
[1740453167380,0.0080444,92567.0,92565.0,0.08327787]
[1740453168736,0.032542,92581.0,92565.0,0.08327787]
[1740453168940,0.02718238,92581.0,92565.0,0.08327787]
[1740453169317,0.032541,92587.0,92565.0,0.08327787]
[1740453169515,0.151697,92592.0,92566.0,0.0767]
[1740453169717,0.001697,92588.0,92566.0,0.0767]
[1740453169921,0.00825183,92580.0,92566.0,0.0767]
[1740453170506,0.00825183,92580.0,92567.0,0.0486]
[1740453170682,0.00825183,92580.0,92568.0,0.0767]
[1740453182198,0.0083137,92584.0,92569.0,0.34092027]
[1740453182431,0.02853322,92588.0,92575.0,0.02]
[1740453182722,0.02853322,92588.0,92578.0,0.0792]
[1740453191825,0.02853322,92588.0,92569.0,0.0813]
[1740453192253,0.0495,92587.0,92564.0,0.0008483]
[1740453192464,0.04079967,92586.0,92564.0,0.0008483]
[1740453192669,0.0461,92567.0,92556.0,0.0133708]
[1740453192870,0.00833079,92566.0,92556.0,0.0133708]
[1740453193098,0.00833079,92566.0,92543.0,0.0793]
[1740453193255,0.02244308,92565.0,92543.0,0.0793]
[1740453193666,0.00434,92564.0,92543.0,0.0793]
[1740453196248,0.00434,92564.0,92556.0,0.083]
[1740453196418,0.00434,92564.0,92556.0,0.0504642]
[1740453199777,0.00833079,92566.0,92556.0,0.0504642]
[1740453199938,0.02557446,92565.0,92556.0,0.0504642]
[1740453200334,0.00833079,92566.0,92557.0,0.0498]
[1740453201103,0.00833079,92566.0,92558.0,0.0792]
[1740453202135,0.00833079,92566.0,92563.0,0.02]
[1740453202347,6.964e-05,92586.0,92564.0,0.0792]
[1740453202548,0.00818797,92571.0,92564.0,0.0792]
[1740453203517,0.00818797,92571.0,92565.0,0.29837059]
[1740453203765,0.00818797,92571.0,92566.0,0.0824]
[1740453204335,0.00688284,92571.0,92566.0,0.0824]
[1740453205727,0.00662354,92571.0,92566.0,0.0824]
[1740453208351,0.00662354,92571.0,92566.0,0.0774]
[1740453217990,0.00662354,92571.0,92566.0,0.0782487]
[1740453230419,0.15,92599.0,92566.0,0.0782487]
[1740453230647,0.00983,92598.0,92566.0,0.0783781]
[1740453230896,0.0016974,92571.0,92567.0,0.0478]
[1740453234307,0.00816754,92568.0,92567.0,0.0478]
[1740453236640,0.00816754,92568.0,92566.0,0.0009781]
[1740453239286,0.00830419,92570.0,92567.0,0.1269]
[1740453239463,0.00830419,92570.0,92568.0,0.0784]
[1740453247767,0.00830419,92570.0,92566.0,0.0009781]
[1740453249981,0.00830419,92570.0,92566.0,0.00017202]
[1740453251147,0.24757228,92569.0,92566.0,0.00017202]
[1740453251327,0.27332967,92569.0,92566.0,0.00017202]
[1740453252352,0.24757228,92569.0,92566.0,0.00017202]
[1740453255317,0.15,92569.0,92566.0,0.00017202]
[1740453258246,0.15,92569.0,92556.0,0.0008488]
[1740453258459,0.15,92569.0,92556.0,0.0012787]
[1740453265589,0.1516974,92569.0,92556.0,0.0012787]
[1740453265849,0.1506974,92569.0,92556.0,0.0012787]
[1740453266099,0.02592713,92568.0,92556.0,0.0012787]
[1740453266581,0.1506974,92569.0,92556.0,0.0012787]
[1740453267832,0.24757228,92568.0,92556.0,0.0012787]
[1740453271124,0.15,92568.0,92556.0,0.0012787]
[1740453271810,0.0303422,92577.0,92556.0,0.0012787]
[1740453274726,0.0081264,92557.0,92556.0,0.0012787]
[1740453280235,0.0081264,92557.0,92549.0,0.0488]
[1740453280435,0.00816952,92557.0,92549.0,0.0488]
[1740453282691,0.00816952,92557.0,92549.0,0.01625363]
[1740453282875,0.00816952,92557.0,92546.0,0.0793]
[1740453283076,0.00816952,92557.0,92546.0,0.04675363]
[1740453285506,0.00669435,92557.0,92546.0,0.04675363]
[1740453288200,0.00669435,92557.0,92546.0,0.01420734]
[1740453289010,0.00669435,92557.0,92546.0,0.01505594]
[1740453290307,0.00669435,92557.0,92545.0,0.03180965]